[Event "*** Titled Tuesday Blitz"]
[Site "Chess.com"]
[Date "2021.03.16"]
[Round "2"]
[White "Das_Virus_2020"]
[Black "barbara25"]
[Result "1/2-1/2"]
[WhiteElo "2466"]
[BlackElo "2235"]
[TimeControl "180+1"]
[EndTime "10:16:31 PDT"]
[Termination "Game drawn by repetition"]

1. e4 {[%clk 0:03:00.9]} 1... c5 {[%clk 0:02:58.3]} 2. c3 {[%clk 0:03:00.5]}
2... d5 {[%clk 0:02:57.5]} 3. exd5 {[%clk 0:03:01.4]} 3... Qxd5 {[%clk
0:02:57.5]} 4. d4 {[%clk 0:03:02]} 4... cxd4 {[%clk 0:02:58.1]} 5. cxd4 {[%clk
0:03:02.9]} 5... e6 {[%clk 0:02:58.6]} 6. Nf3 {[%clk 0:03:03]} 6... Nf6 {[%clk
0:02:58]} 7. Be2 {[%clk 0:03:01.9]} 7... Bb4+ {[%clk 0:02:58]} 8. Nc3 {[%clk
0:03:01.3]} 8... O-O {[%clk 0:02:58.7]} 9. O-O {[%clk 0:03:00.9]} 9... Bxc3
{[%clk 0:02:59.4]} 10. bxc3 {[%clk 0:03:01.8]} 10... Qd8 {[%clk 0:02:58.8]} 11.
Ne5 {[%clk 0:02:57.8]} 11... Nbd7 {[%clk 0:02:58.9]} 12. Bf3 {[%clk 0:02:41.1]}
12... Nxe5 {[%clk 0:02:54.7]} 13. dxe5 {[%clk 0:02:41]} 13... Nd5 {[%clk
0:02:51]} 14. c4 {[%clk 0:02:37.6]} 14... Nb6 {[%clk 0:02:50.7]} 15. Qb3 {[%clk
0:02:23.7]} 15... Qc7 {[%clk 0:02:48.3]} 16. Ba3 {[%clk 0:02:20.4]} 16... Rd8
{[%clk 0:02:42.8]} 17. Bd6 {[%clk 0:02:19.2]} 17... Qxc4 {[%clk 0:02:33.8]} 18.
Rac1 {[%clk 0:02:11.3]} 18... Qxb3 {[%clk 0:02:32.1]} 19. axb3 {[%clk
0:02:12.2]} 19... Nd5 {[%clk 0:02:31.9]} 20. Rfd1 {[%clk 0:02:08.6]} 20... Bd7
{[%clk 0:02:31.2]} 21. Bxd5 {[%clk 0:02:04]} 21... exd5 {[%clk 0:02:31]} 22.
Rxd5 {[%clk 0:02:04.5]} 22... Be6 {[%clk 0:02:31.5]} 23. Rb5 {[%clk 0:02:00.8]}
23... b6 {[%clk 0:02:29.1]} 24. h3 {[%clk 0:01:49.3]} 24... Rdc8 {[%clk
0:02:28.8]} 25. Rxc8+ {[%clk 0:01:42.7]} 25... Rxc8 {[%clk 0:02:28]} 26. Rb4
{[%clk 0:01:43.1]} 26... h6 {[%clk 0:02:26]} 27. Rd4 {[%clk 0:01:36.4]} 27... a5
{[%clk 0:02:22.5]} 28. b4 {[%clk 0:01:34]} 28... a4 {[%clk 0:02:22.4]} 29. b5
{[%clk 0:01:34.1]} 29... Bb3 {[%clk 0:02:13.8]} 30. Kh2 {[%clk 0:01:26.7]} 30...
Rc2 {[%clk 0:02:12.9]} 31. Kg3 {[%clk 0:01:26.2]} 31... Rc3+ {[%clk 0:02:11]}
32. f3 {[%clk 0:01:23.3]} 32... Bc2 {[%clk 0:01:57.5]} 33. Be7 {[%clk 0:00:53]}
33... Rb3 {[%clk 0:01:27.2]} 34. Rc4 {[%clk 0:00:37.6]} 34... Bd1 {[%clk
0:01:14.3]} 35. Rxa4 {[%clk 0:00:33.4]} 35... Rxf3+ {[%clk 0:01:12.5]} 36. gxf3
{[%clk 0:00:32.5]} 36... Bxa4 {[%clk 0:01:12.3]} 37. Bd8 {[%clk 0:00:32.7]}
37... Bxb5 {[%clk 0:01:12.3]} 38. Bxb6 {[%clk 0:00:32.6]} 38... Bc4 {[%clk
0:01:12.4]} 39. Kf4 {[%clk 0:00:31.2]} 39... Kh7 {[%clk 0:01:12.4]} 40. h4
{[%clk 0:00:29.4]} 40... Kg6 {[%clk 0:01:12.4]} 41. Bd8 {[%clk 0:00:29.3]} 41...
Kh5 {[%clk 0:01:10.6]} 42. Be7 {[%clk 0:00:29]} 42... Be6 {[%clk 0:01:07.5]} 43.
Bd8 {[%clk 0:00:28.6]} 43... Kg6 {[%clk 0:01:07.5]} 44. Be7 {[%clk 0:00:28.6]}
44... Kh5 {[%clk 0:01:07.2]} 45. Bd8 {[%clk 0:00:28.4]} 45... Kg6 {[%clk
0:01:07.5]} 46. Be7 {[%clk 0:00:28.6]} 46... Kh5 {[%clk 0:01:07.7]} 1/2-1/2

[Event "*** Titled Tuesday Blitz"]
[Site "Chess.com"]
[Date "2021.03.16"]
[Round "2"]
[White "Volodar_Murzin"]
[Black "The_filthy"]
[Result "1-0"]
[WhiteElo "2669"]
[BlackElo "2301"]
[TimeControl "180+1"]
[EndTime "10:16:36 PDT"]
[Termination "Volodar_Murzin won by resignation"]

1. e4 {[%clk 0:02:51.9]} 1... e6 {[%clk 0:02:59]} 2. d4 {[%clk 0:02:50.7]} 2...
d5 {[%clk 0:02:59.2]} 3. Nc3 {[%clk 0:02:49.9]} 3... Nf6 {[%clk 0:02:59.3]} 4.
e5 {[%clk 0:02:48.3]} 4... Nfd7 {[%clk 0:02:59.5]} 5. Nce2 {[%clk 0:02:48.6]}
5... c5 {[%clk 0:02:51.6]} 6. c3 {[%clk 0:02:47.8]} 6... Nc6 {[%clk 0:02:51]} 7.
f4 {[%clk 0:02:44]} 7... Qb6 {[%clk 0:02:50.3]} 8. Nf3 {[%clk 0:02:42.8]} 8...
Be7 {[%clk 0:02:50.2]} 9. g3 {[%clk 0:02:39.9]} 9... f6 {[%clk 0:02:48.7]} 10.
Bh3 {[%clk 0:02:37.4]} 10... Ndb8 {[%clk 0:02:32.1]} 11. O-O {[%clk 0:02:34.7]}
11... O-O {[%clk 0:02:32]} 12. a3 {[%clk 0:02:19.4]} 12... c4 {[%clk 0:02:30.1]}
13. Kh1 {[%clk 0:02:15.5]} 13... f5 {[%clk 0:02:27.5]} 14. g4 {[%clk 0:02:15.2]}
14... g6 {[%clk 0:02:26.4]} 15. gxf5 {[%clk 0:02:11]} 15... exf5 {[%clk
0:02:25.4]} 16. Rg1 {[%clk 0:02:11.4]} 16... Be6 {[%clk 0:02:10.2]} 17. Ng5
{[%clk 0:02:07.7]} 17... Bxg5 {[%clk 0:02:09.6]} 18. fxg5 {[%clk 0:02:02.8]}
18... Na5 {[%clk 0:02:01.1]} 19. Nf4 {[%clk 0:02:00.4]} 19... Nb3 {[%clk
0:01:59.9]} 20. Rb1 {[%clk 0:01:59.9]} 20... Nd7 {[%clk 0:01:55.3]} 21. Bg2
{[%clk 0:01:56.4]} 21... Qc6 {[%clk 0:01:51]} 22. Be3 {[%clk 0:01:52.3]} 22...
Nb6 {[%clk 0:01:50.3]} 23. h4 {[%clk 0:01:50.3]} 23... Rf7 {[%clk 0:01:44.6]}
24. Bf3 {[%clk 0:01:44.3]} 24... Rd8 {[%clk 0:01:43.7]} 25. h5 {[%clk
0:01:38.9]} 25... Rg7 {[%clk 0:01:44]} 26. hxg6 {[%clk 0:01:37.5]} 26... hxg6
{[%clk 0:01:43.9]} 27. Kg2 {[%clk 0:01:36.9]} 27... Qd7 {[%clk 0:01:08.4]} 28.
Rh1 {[%clk 0:01:34.5]} 28... Nc8 {[%clk 0:01:05.9]} 29. Rh6 {[%clk 0:01:29.5]}
29... Ne7 {[%clk 0:01:06.1]} 30. Qh1 {[%clk 0:01:26.2]} 30... Kf7 {[%clk
0:01:05.7]} 31. Kf2 {[%clk 0:01:16.5]} 31... Rdg8 {[%clk 0:01:05.5]} 32. Qh2
{[%clk 0:01:13.3]} 32... b5 {[%clk 0:01:05.5]} 33. Rh1 {[%clk 0:01:09.1]} 33...
a5 {[%clk 0:01:04.7]} 34. Rh7 {[%clk 0:01:02.3]} 34... b4 {[%clk 0:01:03.6]} 35.
Rxg7+ {[%clk 0:00:59.6]} 35... Rxg7 {[%clk 0:01:03.5]} 36. Qh8 {[%clk
0:00:55.7]} 36... bxc3 {[%clk 0:01:00.9]} 37. bxc3 {[%clk 0:00:51.8]} 37... Qa4
{[%clk 0:00:34.2]} 38. Nxe6 {[%clk 0:00:42.2]} 38... Kxe6 {[%clk 0:00:32.4]} 39.
Qxg7 {[%clk 0:00:41.3]} 1-0

[Event "*** Titled Tuesday Blitz"]
[Site "Chess.com"]
[Date "2021.03.16"]
[Round "2"]
[White "abeljusto"]
[Black "Storne89"]
[Result "0-1"]
[WhiteElo "2194"]
[BlackElo "2635"]
[TimeControl "180+1"]
[EndTime "10:16:37 PDT"]
[Termination "Storne89 won by resignation"]

1. d4 {[%clk 0:03:00.9]} 1... Nf6 {[%clk 0:02:58.6]} 2. Bf4 {[%clk 0:03:00.4]}
2... e6 {[%clk 0:02:58.3]} 3. e3 {[%clk 0:02:59.9]} 3... d5 {[%clk 0:02:58.8]}
4. Nf3 {[%clk 0:02:59.6]} 4... Bd6 {[%clk 0:02:59.3]} 5. Bg3 {[%clk 0:02:58.6]}
5... O-O {[%clk 0:02:59.4]} 6. Nbd2 {[%clk 0:02:57.7]} 6... c5 {[%clk
0:02:59.6]} 7. c3 {[%clk 0:02:57.3]} 7... b6 {[%clk 0:02:59.8]} 8. Bd3 {[%clk
0:02:55.3]} 8... Ba6 {[%clk 0:02:59.3]} 9. Bxa6 {[%clk 0:02:33.9]} 9... Nxa6
{[%clk 0:03:00.2]} 10. Ne5 {[%clk 0:02:32.8]} 10... Nb8 {[%clk 0:02:58.4]} 11.
O-O {[%clk 0:02:31.2]} 11... Qc7 {[%clk 0:02:57.8]} 12. f4 {[%clk 0:02:29.7]}
12... Nc6 {[%clk 0:02:50.8]} 13. Bh4 {[%clk 0:02:29]} 13... Nd7 {[%clk
0:02:47.1]} 14. Ndf3 {[%clk 0:02:04.2]} 14... f6 {[%clk 0:02:46.1]} 15. Nxc6
{[%clk 0:01:53.1]} 15... Qxc6 {[%clk 0:02:45.8]} 16. Bg3 {[%clk 0:01:52.3]}
16... Rf7 {[%clk 0:02:36.2]} 17. Qd3 {[%clk 0:01:51.7]} 17... Nf8 {[%clk
0:02:35.8]} 18. Rae1 {[%clk 0:01:50.6]} 18... Ng6 {[%clk 0:02:35.7]} 19. f5
{[%clk 0:01:36.9]} 19... exf5 {[%clk 0:02:33.2]} 20. Bxd6 {[%clk 0:01:31.1]}
20... Qxd6 {[%clk 0:02:32.8]} 21. Qxf5 {[%clk 0:01:31.4]} 21... Re8 {[%clk
0:02:31.4]} 22. e4 {[%clk 0:01:30.7]} 22... cxd4 {[%clk 0:02:28.2]} 23. Nxd4
{[%clk 0:01:25.7]} 23... Rfe7 {[%clk 0:02:25.9]} 24. Nf3 {[%clk 0:00:36.6]}
24... dxe4 {[%clk 0:02:19.2]} 25. Nd4 {[%clk 0:00:36.4]} 25... Re5 {[%clk
0:02:14.9]} 26. Qh3 {[%clk 0:00:33.4]} 26... Qd5 {[%clk 0:01:55.8]} 27. a3
{[%clk 0:00:30.2]} 27... Rg5 {[%clk 0:01:48.1]} 28. Re2 {[%clk 0:00:29.5]} 28...
Ne5 {[%clk 0:01:36.2]} 29. Nf5 {[%clk 0:00:27.4]} 29... Nd3 {[%clk 0:01:16.5]}
30. Ne3 {[%clk 0:00:15.3]} 30... Qe6 {[%clk 0:01:07.1]} 31. Qxe6+ {[%clk
0:00:14.3]} 31... Rxe6 {[%clk 0:01:08]} 32. b3 {[%clk 0:00:11.8]} 32... Rc5
{[%clk 0:01:04.6]} 33. c4 {[%clk 0:00:11.8]} 33... g6 {[%clk 0:01:04.4]} 34. Nd5
{[%clk 0:00:12.3]} 34... f5 {[%clk 0:01:04.6]} 35. Rd1 {[%clk 0:00:11.6]} 35...
Kf7 {[%clk 0:01:03.5]} 36. Rc2 {[%clk 0:00:11.5]} 36... b5 {[%clk 0:01:02.7]}
37. b4 {[%clk 0:00:11.7]} 37... Rxc4 {[%clk 0:01:02.6]} 38. Rxc4 {[%clk
0:00:12]} 38... bxc4 {[%clk 0:01:03.5]} 0-1

[Event "*** Titled Tuesday Blitz"]
[Site "Chess.com"]
[Date "2021.03.16"]
[Round "2"]
[White "I_Enchev"]
[Black "PaulfromSPb"]
[Result "0-1"]
[WhiteElo "2539"]
[BlackElo "2814"]
[TimeControl "180+1"]
[EndTime "10:16:39 PDT"]
[Termination "PaulfromSPb won by resignation"]

1. d4 {[%clk 0:03:00.9]} 1... Nf6 {[%clk 0:02:53.5]} 2. c4 {[%clk 0:03:00]} 2...
e6 {[%clk 0:02:43.8]} 3. Nf3 {[%clk 0:02:55.3]} 3... b6 {[%clk 0:02:39.9]} 4. g3
{[%clk 0:02:54.2]} 4... Ba6 {[%clk 0:02:38]} 5. Nbd2 {[%clk 0:02:51.2]} 5... c5
{[%clk 0:02:32.1]} 6. dxc5 {[%clk 0:02:49.8]} 6... Bxc5 {[%clk 0:02:31.5]} 7.
Bg2 {[%clk 0:02:49.7]} 7... Bb7 {[%clk 0:02:31.3]} 8. O-O {[%clk 0:02:48.5]}
8... O-O {[%clk 0:02:28.5]} 9. b3 {[%clk 0:02:44.8]} 9... d5 {[%clk 0:02:24.5]}
10. cxd5 {[%clk 0:02:44.3]} 10... exd5 {[%clk 0:02:18.7]} 11. Bb2 {[%clk
0:02:43.8]} 11... Nc6 {[%clk 0:02:17.1]} 12. a3 {[%clk 0:02:41.8]} 12... a5
{[%clk 0:02:13.5]} 13. Ne1 {[%clk 0:02:38.4]} 13... Re8 {[%clk 0:02:08]} 14. Nd3
{[%clk 0:02:38.2]} 14... Bd4 {[%clk 0:02:05.6]} 15. Bxd4 {[%clk 0:02:35.5]}
15... Nxd4 {[%clk 0:02:06.5]} 16. e3 {[%clk 0:02:34.3]} 16... Nb5 {[%clk
0:02:06.7]} 17. Nf3 {[%clk 0:02:30.8]} 17... Rc8 {[%clk 0:02:04.7]} 18. Nf4
{[%clk 0:02:24.7]} 18... Ba6 {[%clk 0:02:03.2]} 19. Re1 {[%clk 0:02:16]} 19...
Nc3 {[%clk 0:02:03.2]} 20. Qd4 {[%clk 0:02:05.6]} 20... Nfe4 {[%clk 0:02:01.4]}
21. h4 {[%clk 0:01:55.5]} 21... h6 {[%clk 0:01:59.2]} 22. h5 {[%clk 0:01:52.4]}
22... Rc5 {[%clk 0:01:56.7]} 23. Nd2 {[%clk 0:01:41.5]} 23... Nd6 {[%clk
0:01:54.3]} 24. Nb1 {[%clk 0:01:19.3]} 24... Nce4 {[%clk 0:01:52.2]} 25. Bxe4
{[%clk 0:01:14.9]} 25... Rxe4 {[%clk 0:01:49.7]} 26. Qd2 {[%clk 0:01:13.1]}
26... d4 {[%clk 0:01:47.7]} 27. exd4 {[%clk 0:01:09.3]} 27... Rc2 {[%clk
0:01:47.9]} 28. Qd1 {[%clk 0:01:04.3]} 28... Rxe1+ {[%clk 0:01:34.9]} 29. Qxe1
{[%clk 0:01:05.2]} 29... Nf5 {[%clk 0:01:33.2]} 30. Nc3 {[%clk 0:00:45.7]} 30...
Nxg3 {[%clk 0:01:19.4]} 31. Rc1 {[%clk 0:00:29.6]} 31... Rb2 {[%clk 0:01:12.2]}
32. Ncd5 {[%clk 0:00:26.1]} 32... Qh4 {[%clk 0:01:09.2]} 33. Qe8+ {[%clk
0:00:13.6]} 33... Kh7 {[%clk 0:01:08.6]} 34. Nf6+ {[%clk 0:00:07.8]} 34... Qxf6
{[%clk 0:01:01.9]} 35. fxg3 {[%clk 0:00:06.6]} 35... Qxd4+ {[%clk 0:01:00.9]}
36. Kh1 {[%clk 0:00:06.2]} 36... Bb7+ {[%clk 0:01:01]} 0-1

[Event "*** Titled Tuesday Blitz"]
[Site "Chess.com"]
[Date "2021.03.16"]
[Round "2"]
[White "bait_or_mate"]
[Black "Evgeny81"]
[Result "0-1"]
[WhiteElo "2498"]
[BlackElo "2757"]
[TimeControl "180+1"]
[EndTime "10:16:39 PDT"]
[Termination "Evgeny81 won by checkmate"]

1. d4 {[%clk 0:03:00.9]} 1... Nf6 {[%clk 0:02:59.3]} 2. c4 {[%clk 0:03:01.1]}
2... c5 {[%clk 0:02:59.8]} 3. Nf3 {[%clk 0:03:01.3]} 3... cxd4 {[%clk
0:02:59.3]} 4. Nxd4 {[%clk 0:03:02.2]} 4... e5 {[%clk 0:02:59.5]} 5. Nb5 {[%clk
0:03:01.9]} 5... d5 {[%clk 0:02:59.7]} 6. cxd5 {[%clk 0:03:00.9]} 6... Bc5
{[%clk 0:03:00]} 7. N1c3 {[%clk 0:02:51.5]} 7... O-O {[%clk 0:02:56.1]} 8. g3
{[%clk 0:02:51.5]} 8... Ng4 {[%clk 0:02:48.9]} 9. e3 {[%clk 0:02:42.7]} 9... f5
{[%clk 0:02:44.8]} 10. Bg2 {[%clk 0:02:37.9]} 10... a6 {[%clk 0:02:43.4]} 11.
Na3 {[%clk 0:02:37.8]} 11... e4 {[%clk 0:02:36.1]} 12. O-O {[%clk 0:02:28.2]}
12... Qg5 {[%clk 0:02:23.2]} 13. Nc2 {[%clk 0:02:12.8]} 13... Nd7 {[%clk
0:02:13.8]} 14. b4 {[%clk 0:02:09.5]} 14... Bd6 {[%clk 0:02:11.7]} 15. Bb2
{[%clk 0:02:08.2]} 15... Nde5 {[%clk 0:02:09.9]} 16. h3 {[%clk 0:01:58]} 16...
Nxf2 {[%clk 0:01:59.5]} 17. Rxf2 {[%clk 0:01:55]} 17... Nd3 {[%clk 0:01:51.5]}
18. Nxe4 {[%clk 0:01:07]} 18... fxe4 {[%clk 0:01:48.5]} 19. Rxf8+ {[%clk
0:01:05.9]} 19... Kxf8 {[%clk 0:01:31.7]} 20. Bd4 {[%clk 0:00:41.4]} 20... Qxg3
{[%clk 0:01:25.7]} 21. Qh5 {[%clk 0:00:31.2]} 21... Qh2+ {[%clk 0:00:46.6]} 22.
Kf1 {[%clk 0:00:30.2]} 22... Bd7 {[%clk 0:00:46.2]} 23. Ne1 {[%clk 0:00:27.2]}
23... Bb5 {[%clk 0:00:38.9]} 24. Qg4 {[%clk 0:00:11.9]} 24... Ne5+ {[%clk
0:00:34.3]} 25. Kf2 {[%clk 0:00:10.1]} 25... Nxg4+ {[%clk 0:00:34.1]} 26. hxg4
{[%clk 0:00:10.8]} 26... Bg3# {[%clk 0:00:32.6]} 0-1

[Event "*** Titled Tuesday Blitz"]
[Site "Chess.com"]
[Date "2021.03.16"]
[Round "2"]
[White "Ranindu2003"]
[Black "DrMamaliga"]
[Result "1-0"]
[WhiteElo "2602"]
[BlackElo "2335"]
[TimeControl "180+1"]
[EndTime "10:16:39 PDT"]
[Termination "Ranindu2003 won by checkmate"]

1. e4 {[%clk 0:03:00.9]} 1... e5 {[%clk 0:01:32.9]} 2. Nf3 {[%clk 0:02:59.9]}
2... Nc6 {[%clk 0:01:32.2]} 3. Bc4 {[%clk 0:03:00.1]} 3... Bc5 {[%clk
0:01:28.9]} 4. c3 {[%clk 0:03:00.3]} 4... Nf6 {[%clk 0:01:26.4]} 5. d3 {[%clk
0:03:00.8]} 5... a6 {[%clk 0:01:25.8]} 6. Bb3 {[%clk 0:03:01.2]} 6... Ba7 {[%clk
0:01:25.7]} 7. h3 {[%clk 0:03:01.3]} 7... d6 {[%clk 0:01:25.3]} 8. Nbd2 {[%clk
0:03:01.7]} 8... h6 {[%clk 0:01:25.8]} 9. Nf1 {[%clk 0:03:01.3]} 9... g5 {[%clk
0:01:26.4]} 10. Ng3 {[%clk 0:03:01.3]} 10... Qe7 {[%clk 0:01:25]} 11. Nh2 {[%clk
0:02:58.8]} 11... Be6 {[%clk 0:01:23.3]} 12. Qf3 {[%clk 0:02:57.8]} 12... O-O-O
{[%clk 0:01:21.9]} 13. Ng4 {[%clk 0:02:56.8]} 13... Nxg4 {[%clk 0:01:20]} 14.
hxg4 {[%clk 0:02:57.7]} 14... Bxb3 {[%clk 0:01:13.3]} 15. axb3 {[%clk 0:02:56]}
15... d5 {[%clk 0:01:14.2]} 16. exd5 {[%clk 0:02:48.8]} 16... Nb8 {[%clk
0:01:06.9]} 17. Nf5 {[%clk 0:02:48.1]} 17... Qf6 {[%clk 0:01:05.6]} 18. Be3
{[%clk 0:02:38.8]} 18... Bxe3 {[%clk 0:01:04.4]} 19. fxe3 {[%clk 0:02:39.7]}
19... e4 {[%clk 0:01:01.8]} 20. dxe4 {[%clk 0:02:36.9]} 20... Nd7 {[%clk
0:01:02]} 21. O-O-O {[%clk 0:02:13]} 21... Ne5 {[%clk 0:01:01.8]} 22. Qe2 {[%clk
0:02:10.3]} 22... Qb6 {[%clk 0:01:01.8]} 23. Kc2 {[%clk 0:02:09.4]} 23... Rhe8
{[%clk 0:01:00.9]} 24. Rd4 {[%clk 0:02:06.1]} 24... f6 {[%clk 0:00:55.1]} 25.
Rhd1 {[%clk 0:02:00.4]} 25... c5 {[%clk 0:00:50.6]} 26. dxc6 {[%clk 0:01:57.7]}
26... Nxc6 {[%clk 0:00:50.1]} 27. Nd6+ {[%clk 0:01:34.7]} 27... Rxd6 {[%clk
0:00:46.2]} 28. Rxd6 {[%clk 0:01:35.6]} 28... Rxe4 {[%clk 0:00:47.1]} 29. R1d3
{[%clk 0:01:13.9]} 29... Qc5 {[%clk 0:00:45.6]} 30. Kb1 {[%clk 0:01:04.6]} 30...
f5 {[%clk 0:00:41.2]} 31. gxf5 {[%clk 0:00:59.6]} 31... Qxf5 {[%clk 0:00:42.1]}
32. Qf3 {[%clk 0:00:51]} 32... Qe5 {[%clk 0:00:42.3]} 33. Qf8+ {[%clk
0:00:31.7]} 33... Kc7 {[%clk 0:00:42.2]} 34. Rd7+ {[%clk 0:00:30.1]} 34... Kb6
{[%clk 0:00:42.4]} 35. R3d5 {[%clk 0:00:30.6]} 35... Qg3 {[%clk 0:00:38]} 36.
Qc5# {[%clk 0:00:30]} 1-0

[Event "*** Titled Tuesday Blitz"]
[Site "Chess.com"]
[Date "2021.03.16"]
[Round "2"]
[White "eljanov"]
[Black "Unknown_IM"]
[Result "1-0"]
[WhiteElo "2867"]
[BlackElo "2397"]
[TimeControl "180+1"]
[EndTime "10:16:40 PDT"]
[Termination "eljanov won by resignation"]

1. Nf3 {[%clk 0:02:43.9]} 1... d5 {[%clk 0:02:58.1]} 2. g3 {[%clk 0:02:32.6]}
2... Nc6 {[%clk 0:02:57.4]} 3. d4 {[%clk 0:02:30.8]} 3... Bg4 {[%clk 0:02:56.9]}
4. Bg2 {[%clk 0:02:30.3]} 4... Qd7 {[%clk 0:02:56.5]} 5. O-O {[%clk 0:02:30]}
5... O-O-O {[%clk 0:02:54.6]} 6. c4 {[%clk 0:02:30.2]} 6... dxc4 {[%clk
0:02:53.7]} 7. Qa4 {[%clk 0:02:30]} 7... Kb8 {[%clk 0:02:54]} 8. Qxc4 {[%clk
0:02:26.4]} 8... Bxf3 {[%clk 0:02:52.9]} 9. Bxf3 {[%clk 0:02:22.3]} 9... Nxd4
{[%clk 0:02:53]} 10. Nc3 {[%clk 0:02:19]} 10... e5 {[%clk 0:02:24.5]} 11. Be3
{[%clk 0:02:18]} 11... Nxf3+ {[%clk 0:02:10.2]} 12. exf3 {[%clk 0:02:17.7]}
12... Nf6 {[%clk 0:02:07.7]} 13. Rfd1 {[%clk 0:02:15.6]} 13... Bd6 {[%clk
0:02:00.1]} 14. Nb5 {[%clk 0:02:00.2]} 14... a6 {[%clk 0:01:59.9]} 15. a4 {[%clk
0:01:53.8]} 15... Qf5 {[%clk 0:01:52]} 16. Rxd6 {[%clk 0:01:39]} 16... axb5
{[%clk 0:01:32.4]} 17. Rxd8+ {[%clk 0:01:38.5]} 17... Rxd8 {[%clk 0:01:32.8]}
18. axb5 {[%clk 0:01:38.9]} 18... Qxf3 {[%clk 0:01:29.6]} 19. Qa4 {[%clk
0:01:29.8]} 19... b6 {[%clk 0:01:26.2]} 20. Bxb6 {[%clk 0:01:26.9]} 20... Qb7
{[%clk 0:01:15]} 21. Ba7+ {[%clk 0:00:59.8]} 21... Kc8 {[%clk 0:01:13.5]} 22.
Bc5 {[%clk 0:00:57]} 22... Rd5 {[%clk 0:00:51.8]} 23. Rc1 {[%clk 0:00:52.2]}
23... Nd7 {[%clk 0:00:25.7]} 24. b4 {[%clk 0:00:50.7]} 24... Kb8 {[%clk
0:00:19.7]} 25. Qa2 {[%clk 0:00:38.2]} 25... Nf6 {[%clk 0:00:12.4]} 26. Be3
{[%clk 0:00:34.7]} 26... Qxb5 {[%clk 0:00:10.7]} 27. Qa7+ {[%clk 0:00:34.2]} 1-0

[Event "*** Titled Tuesday Blitz"]
[Site "Chess.com"]
[Date "2021.03.16"]
[Round "2"]
[White "vanImpe"]
[Black "JiiHart"]
[Result "1-0"]
[WhiteElo "2415"]
[BlackElo "2060"]
[TimeControl "180+1"]
[EndTime "10:16:51 PDT"]
[Termination "vanImpe won on time"]

1. g3 {[%clk 0:03:00.9]} 1... g6 {[%clk 0:02:59.4]} 2. Bg2 {[%clk 0:03:01]} 2...
Bg7 {[%clk 0:03:00]} 3. d4 {[%clk 0:03:01.2]} 3... d6 {[%clk 0:02:59.7]} 4. e4
{[%clk 0:03:01.6]} 4... Nd7 {[%clk 0:02:59.6]} 5. Ne2 {[%clk 0:03:02.2]} 5... e5
{[%clk 0:02:59.6]} 6. O-O {[%clk 0:03:01.5]} 6... Ne7 {[%clk 0:02:59.3]} 7. c4
{[%clk 0:03:01.7]} 7... O-O {[%clk 0:02:58.5]} 8. Nbc3 {[%clk 0:03:01.9]} 8...
f5 {[%clk 0:02:36.6]} 9. dxe5 {[%clk 0:02:58.6]} 9... Nxe5 {[%clk 0:02:27.1]}
10. f4 {[%clk 0:02:58.6]} 10... Nxc4 {[%clk 0:02:15.3]} 11. Qb3 {[%clk
0:02:54.3]} 11... Be6 {[%clk 0:02:14]} 12. exf5 {[%clk 0:02:50.8]} 12... gxf5
{[%clk 0:01:45.3]} 13. Be3 {[%clk 0:02:19.4]} 13... Qd7 {[%clk 0:01:35.9]} 14.
Bd4 {[%clk 0:02:19.4]} 14... Bxd4+ {[%clk 0:01:20.3]} 15. Nxd4 {[%clk
0:02:18.5]} 15... Bf7 {[%clk 0:01:20.4]} 16. Rfe1 {[%clk 0:01:45.8]} 16... Ne3
{[%clk 0:01:01]} 17. Qxb7 {[%clk 0:01:34.7]} 17... Rab8 {[%clk 0:00:57.1]} 18.
Qf3 {[%clk 0:01:33.6]} 18... Nxg2 {[%clk 0:00:49.2]} 19. Qxg2 {[%clk 0:01:33.5]}
19... c5 {[%clk 0:00:49.6]} 20. Nf3 {[%clk 0:01:26.5]} 20... Nc6 {[%clk
0:00:38.2]} 21. Rad1 {[%clk 0:01:22]} 21... Rfe8 {[%clk 0:00:27.6]} 22. Rxe8+
{[%clk 0:01:21.7]} 22... Rxe8 {[%clk 0:00:25]} 23. Qd2 {[%clk 0:01:19.2]} 23...
d5 {[%clk 0:00:11.4]} 24. Nxd5 {[%clk 0:01:14.2]} 24... Bxd5 {[%clk 0:00:10.7]}
25. Qxd5+ {[%clk 0:01:14.3]} 25... Qxd5 {[%clk 0:00:10.8]} 26. Rxd5 {[%clk
0:01:13.8]} 26... Nd4 {[%clk 0:00:10.7]} 27. Nxd4 {[%clk 0:01:11]} 27... cxd4
{[%clk 0:00:11]} 28. Kf2 {[%clk 0:01:06.3]} 28... Re4 {[%clk 0:00:10]} 29. Rxf5
{[%clk 0:01:05.1]} 29... d3 {[%clk 0:00:09.1]} 30. Re5 {[%clk 0:01:00.7]} 30...
Rb4 {[%clk 0:00:07.9]} 31. b3 {[%clk 0:01:00.2]} 31... Rd4 {[%clk 0:00:07.1]}
32. Ke1 {[%clk 0:00:56.7]} 32... Kf7 {[%clk 0:00:07.4]} 33. Kd2 {[%clk
0:00:56.9]} 33... Rd6 {[%clk 0:00:05.1]} 34. Re3 {[%clk 0:00:56.5]} 34... Ra6
{[%clk 0:00:04.8]} 35. a4 {[%clk 0:00:55.8]} 1-0

[Event "*** Titled Tuesday Blitz"]
[Site "Chess.com"]
[Date "2021.03.16"]
[Round "2"]
[White "MagzyPotato"]
[Black "Koksik_13"]
[Result "1-0"]
[WhiteElo "2370"]
[BlackElo "2670"]
[TimeControl "180+1"]
[EndTime "10:16:55 PDT"]
[Termination "MagzyPotato won on time"]

1. d4 {[%clk 0:03:00.9]} 1... e6 {[%clk 0:02:59.8]} 2. e4 {[%clk 0:03:01.1]}
2... d5 {[%clk 0:03:00]} 3. Nc3 {[%clk 0:03:01.8]} 3... Bb4 {[%clk 0:03:00]} 4.
e5 {[%clk 0:03:01.9]} 4... c5 {[%clk 0:02:59.8]} 5. a3 {[%clk 0:03:02.6]} 5...
Bxc3+ {[%clk 0:03:00.2]} 6. bxc3 {[%clk 0:03:03.5]} 6... Ne7 {[%clk 0:02:59]} 7.
h4 {[%clk 0:03:03.8]} 7... b6 {[%clk 0:02:58.7]} 8. h5 {[%clk 0:03:01.3]} 8...
h6 {[%clk 0:02:58.4]} 9. Rb1 {[%clk 0:02:58]} 9... Ba6 {[%clk 0:02:57.3]} 10.
Qg4 {[%clk 0:02:52.3]} 10... Bxf1 {[%clk 0:02:55.8]} 11. Kxf1 {[%clk 0:02:52.5]}
11... Qc7 {[%clk 0:02:49.4]} 12. dxc5 {[%clk 0:02:44.7]} 12... Qxc5 {[%clk
0:02:48.3]} 13. Ne2 {[%clk 0:02:35.4]} 13... Rg8 {[%clk 0:02:37.5]} 14. a4
{[%clk 0:02:08]} 14... Nbc6 {[%clk 0:02:31.7]} 15. Qf4 {[%clk 0:01:51.1]} 15...
Rc8 {[%clk 0:02:22.9]} 16. Rh3 {[%clk 0:01:42.5]} 16... Na5 {[%clk 0:02:18]} 17.
Rf3 {[%clk 0:01:33.5]} 17... Rf8 {[%clk 0:02:15.7]} 18. Qg4 {[%clk 0:01:21.4]}
18... Nf5 {[%clk 0:02:13.5]} 19. Kg1 {[%clk 0:00:52.2]} 19... Nc4 {[%clk
0:01:58.5]} 20. Bf4 {[%clk 0:00:45]} 20... Na3 {[%clk 0:01:49.3]} 21. Rc1 {[%clk
0:00:37.2]} 21... Nc4 {[%clk 0:01:34.9]} 22. Ng3 {[%clk 0:00:36.9]} 22... Nxg3
{[%clk 0:01:24]} 23. Qxg3 {[%clk 0:00:36.5]} 23... Ke7 {[%clk 0:00:57.7]} 24.
Qxg7 {[%clk 0:00:36.7]} 24... Qa3 {[%clk 0:00:44.3]} 25. Bxh6 {[%clk 0:00:34.7]}
25... Qb2 {[%clk 0:00:09.1]} 26. Bg5+ {[%clk 0:00:34.2]} 26... Ke8 {[%clk
0:00:07]} 27. h6 {[%clk 0:00:33.7]} 1-0